bitfinex/quotes_SOLUSD_20250902
["timestamp","ask_amount","ask_price","bid_price","bid_amount"]
[1756812063872,22.77450124,202.93,202.92,0.05468082]
[1756812064067,39.87991715,202.91,202.9,0.03]
[1756812064298,89.61233967,202.91,202.9,0.03]
[1756812064467,90.32233967,202.91,202.9,0.03]
[1756812065187,95.250633,202.91,202.9,0.03]
[1756812065796,90.46450124,202.91,202.9,0.03]
[1756812066678,86.08828998,202.91,202.9,0.03]
[1756812066871,90.46450124,202.91,202.9,0.03]
[1756812067790,39.59559401,202.91,202.9,0.03]
[1756812068089,85.21612841,202.91,202.9,0.03]
[1756812068296,85.78396684,202.91,202.9,0.03]
[1756812068683,85.92612841,202.91,202.9,0.03]
[1756812068993,95.230633,202.91,202.9,0.03]
[1756812069196,13.87991715,202.9,202.82,0.064954]
[1756812069377,18.25612841,202.83,202.82,0.064954]
[1756812069688,54.97991715,202.83,202.82,0.744954]
[1756812070174,59.35612841,202.83,202.82,0.744954]
[1756812070789,59.35612841,202.83,202.82,4.99543422]
[1756812070992,59.35612841,202.83,202.82,0.064954]
[1756812071202,18.25612841,202.83,202.82,0.064954]
[1756812071405,59.31612841,202.83,202.82,0.064954]
[1756812071572,18.25612841,202.83,202.82,0.064954]
[1756812071773,59.31612841,202.83,202.82,0.064954]
[1756812073510,54.93991715,202.83,202.82,0.064954]
[1756812073695,64.91636555,202.83,202.82,0.064954]
[1756812073886,59.98612841,202.83,202.82,0.064954]
[1756812074514,18.25612841,202.83,202.82,0.064954]
[1756812074817,54.67559401,202.83,202.82,0.064954]
[1756812074985,55.34559401,202.83,202.82,0.064954]
[1756812075183,59.33612841,202.83,202.82,0.064954]
[1756812075511,16.68562338,202.83,202.82,0.064954]
[1756812075720,54.65559401,202.83,202.82,0.744954]
[1756812075899,54.79775558,202.83,202.82,0.744954]
[1756812076238,41.04,202.83,202.82,3.55066023]
[1756812076405,41.04,202.83,202.82,0.744954]
[1756812076902,41.04,202.83,202.82,3.55066023]
[1756812077100,30.92800633,202.93,202.82,3.55066023]
[1756812077101,13.59559401,202.88,202.82,8.48114045]
[1756812077422,13.59559401,202.86,202.84,2.80570623]
[1756812077607,54.61559401,202.85,202.84,2.80570623]
[1756812078004,54.61559401,202.85,202.82,17.32163479]
[1756812078207,54.61559401,202.85,202.83,0.68]
[1756812078406,54.61559401,202.85,202.82,17.32163479]
[1756812078407,54.61559401,202.85,202.82,33.80114045]
[1756812078730,54.61559401,202.85,202.82,5.67543422]
[1756812079018,54.61559401,202.85,202.82,0.064954]
[1756812079019,13.87991715,202.84,202.82,0.064954]
[1756812079196,54.55559401,202.83,202.82,0.744954]
[1756812079700,54.55559401,202.83,202.82,0.064954]
[1756812080524,54.55559401,202.83,202.82,0.094954]
[1756812081204,13.59559401,202.83,202.82,5.70543422]
[1756812081401,54.49559401,202.83,202.82,8.51114045]
[1756812081593,54.47559401,202.83,202.82,8.51114045]
[1756812081794,13.87991715,202.88,202.82,20.83734102]
[1756812082017,13.87991715,202.86,202.84,2.80570623]
[1756812082329,136.60570623,202.92,202.85,2.80570623]
[1756812082509,136.60570623,202.92,202.82,17.35163479]
[1756812082510,54.61775558,202.91,202.82,43.35163479]
[1756812082812,16.40130024,202.91,202.86,2.80570623]
[1756812083015,0.14216157,202.89,202.87,2.80570623]
[1756812083222,54.59775558,202.88,202.87,4.92926504]
[1756812083422,54.73991715,202.88,202.87,4.92926504]
[1756812084221,13.87991715,202.87,202.85,4.92975104]
[1756812084414,54.41559401,202.86,202.85,4.92975104]
[1756812084930,54.69991715,202.86,202.85,4.92975104]
[1756812085293,13.59559401,202.85,202.84,4.92999408]
[1756812085696,3.53570623,202.96,202.87,26.0]
[1756812085922,40.84,202.93,202.92,2.80570623]
[1756812086303,40.84,202.93,202.92,3.48570623]
[1756812086815,54.43559401,202.93,202.91,2.80570623]
[1756812086993,0.14216157,202.91,202.87,26.0]
[1756812087193,13.59559401,202.89,202.85,0.68]
[1756812087414,13.59559401,202.89,202.79,0.03]
[1756812087415,13.87991715,202.87,202.83,5.61015025]
[1756812087610,40.74,202.86,202.83,4.93015025]
[1756812088007,40.74,202.87,202.85,2.80570623]
[1756812088198,40.74,202.87,202.85,3.48570623]
[1756812088397,40.74,202.87,202.83,43.25574311]
[1756812088597,13.59559401,202.86,202.83,43.25574311]
[1756812088798,0.28432314,202.9,202.83,46.06144934]
[1756812089021,40.72,202.89,202.86,2.80570623]
[1756812089215,40.72,202.89,202.87,4.92926504]
[1756812091038,40.72,202.89,202.86,4.92950803]
[1756812092532,40.72,202.89,202.86,8.41521426]
[1756812093024,54.31559401,202.89,202.88,4.92902208]
[1756812093825,13.59559401,202.89,202.88,4.92902208]
[1756812094131,54.19559401,202.89,202.87,4.92926504]
[1756812094929,54.86559401,202.89,202.87,4.92926504]
[1756812095531,54.19559401,202.89,202.87,4.92926504]
[1756812096319,54.19559401,202.89,202.85,7.73545727]
[1756812096519,54.19559401,202.89,202.85,8.41545727]
[1756812097126,54.19559401,202.89,202.86,2.80570623]
[1756812097326,54.19559401,202.89,202.87,2.80570623]
[1756812097508,54.19559401,202.89,202.85,17.93412865]
[1756812097705,0.06,202.93,202.88,28.80570623]
[1756812097913,0.06,202.93,202.92,2.80570623]
[1756812098122,0.06,202.93,202.9,0.14216157]
[1756812098326,0.06,202.93,202.92,7.73375669]
[1756812099334,0.06,202.93,202.92,30.92805046]
[1756812099519,0.06,202.93,202.92,33.73375669]
[1756812099836,0.06,202.96,202.92,46.87604441]
[1756812100011,0.06,202.96,202.95,26.0]
[1756812100205,0.93432314,202.95,202.92,26.0]
[1756812100419,0.93432314,202.95,202.9,2.80570623]
[1756812100420,41.07,202.94,202.9,2.80570623]
[1756812100613,0.06,202.93,202.9,2.80570623]
[1756812100817,13.59559401,202.91,202.88,4.92902208]
[1756812101028,54.64559401,202.91,202.88,4.92902208]
[1756812101212,54.64559401,202.91,202.9,26.0]
[1756812101606,54.64559401,202.91,202.88,4.92902208]
[1756812102638,53.99559401,202.91,202.88,4.92902208]
[1756812103009,0.24270403,222.69,202.92,26.0]
[1756812103010,0.06,203.01,202.92,26.0]
[1756812103210,8.52,203.01,202.95,2.80570623]
[1756812103713,1e-08,202.96,202.95,3.48570623]
[1756812104520,1e-08,202.96,202.95,8.41302823]
[1756812106733,1e-08,203.04,203.01,0.14216157]
[1756812106941,1e-08,203.04,203.03,2.80570623]
[1756812107234,1e-08,203.04,203.02,0.68]
[1756812107425,1e-08,203.04,203.03,7.67239713]
[1756812107933,1e-08,203.04,203.03,0.14216157]
[1756812108134,0.65000001,203.04,203.01,6.99239713]
[1756812108540,1e-08,203.04,203.02,6.99239713]
[1756812108830,1e-08,203.04,203.03,4.92538048]
[1756812110623,1e-08,203.04,203.03,11.91777761]
[1756812111834,1e-08,203.04,203.03,4.92538048]
[1756812114539,1e-08,203.04,203.02,6.99239713]
[1756812114841,1e-08,203.04,203.01,4.92586572]
[1756812115014,1e-08,203.04,203.02,6.99239713]
[1756812116241,1e-08,203.04,203.01,11.91826285]
[1756812116242,0.65000001,203.04,203.01,11.91826285]
[1756812116745,1e-08,203.04,203.01,11.91826285]
[1756812117636,1e-08,203.04,203.01,4.92586572]
[1756812117946,1e-08,203.04,203.01,11.91826285]
[1756812118746,1e-08,203.04,203.02,6.99239713]
[1756812120345,1e-08,203.04,203.01,11.91826285]
[1756812120955,1e-08,203.04,203.01,4.92586572]
[1756812121130,1e-08,203.04,203.01,11.91826285]
[1756812123943,1e-08,203.04,203.03,32.99239713]
[1756812124473,1e-08,203.04,203.03,33.67239713]
[1756812124627,1e-08,203.04,203.03,7.67239713]
[1756812125138,1e-08,203.04,203.03,12.59777761]
[1756812125532,1e-08,203.07,203.06,26.0]
[1756812125723,1e-08,203.07,203.06,33.48486241]
[1756812125928,1e-08,203.07,203.06,34.16486241]
[1756812126326,1e-08,203.07,203.06,34.30702398]
[1756812127258,1e-08,203.07,203.06,39.23167679]
[1756812128146,1e-08,203.07,203.06,38.55167679]
[1756812129529,1e-08,203.07,203.06,34.35581023]
[1756812129751,1e-08,203.07,203.06,35.01581023]
[1756812130452,1e-08,203.07,203.06,31.06681438]
[1756812130645,0.65000001,203.07,203.06,5.06681438]
[1756812130850,1e-08,203.07,203.06,7.86334495]
[1756812131049,1e-08,203.07,203.06,33.86334495]
[1756812135037,1e-08,203.07,203.06,31.06681438]
[1756812135248,1e-08,203.07,203.06,33.86334495]
[1756812135449,1e-08,203.07,203.06,34.52334495]
[1756812135664,1e-08,203.07,203.06,8.52334495]
[1756812135839,1e-08,203.09,203.08,26.0]
[1756812136044,1e-08,203.09,203.08,28.93869214]
[1756812136965,1e-08,203.09,203.08,33.86285995]
[1756812137334,1e-08,203.09,203.08,31.06632938]
[1756812137569,1e-08,203.09,203.08,35.43580577]
[1756812137864,0.65000001,203.09,203.08,4.92416781]
[1756812138159,0.65000001,203.09,203.08,30.92416781]
[1756812139268,1e-08,203.09,203.08,35.2936442]
[1756812140750,1e-08,203.09,203.08,30.92416781]
[1756812141067,1e-08,203.09,203.08,35.2936442]
[1756812142549,1e-08,203.09,203.08,30.92416781]
[1756812142756,1e-08,203.09,203.08,35.2936442]
[1756812144182,1e-08,203.09,203.08,30.92416781]
[1756812144481,1e-08,203.09,203.08,35.2936442]
[1756812144774,1e-08,203.09,203.08,30.92416781]
[1756812144976,1e-08,203.09,203.08,35.2936442]
[1756812145286,1e-08,203.09,203.02,12.31386878]
[1756812145287,5.0194764,203.09,203.02,12.31386878]
[1756812145470,4.36947639,203.06,203.02,12.31386878]
[1756812145778,0.65,203.05,203.03,4.92538048]
[1756812145961,0.65,203.04,203.03,4.92538048]
[1756812146482,0.65,203.04,203.02,17.23949187]
[1756812146654,0.65,203.04,203.02,21.60896826]
[1756812146859,0.65,203.04,203.02,17.23949187]
[1756812147161,0.65,203.04,203.02,21.60896826]
[1756812147679,13.87991715,203.08,203.02,4.92562309]
[1756812147680,18.6150704,203.03,203.02,4.92562309]
[1756812147861,18.6150704,203.03,203.02,30.92562309]
[1756812148688,14.24559401,203.03,203.02,30.92562309]
[1756812151173,18.6150704,203.03,203.02,4.92562309]
[1756812152573,13.59559401,203.02,203.01,4.95580352]
[1756812152781,18.89939354,203.02,203.01,4.95580352]
[1756812154577,18.89939354,203.02,203.01,0.03]
[1756812156489,23.82501663,203.02,203.01,0.03]
[1756812156663,19.45554024,203.02,203.01,0.03]
[1756812156855,23.82501663,203.02,203.01,0.03]
[1756812157697,0.28432314,203.01,202.98,0.03]
[1756812157860,18.24939354,202.99,202.98,0.03]
[1756812158057,18.89939354,202.99,202.98,0.03]
[1756812158853,23.82574459,202.99,202.98,0.03]
[1756812159560,18.89939354,202.99,202.98,0.03]
[1756812159782,58.15939354,202.99,202.98,0.03]
[1756812159979,63.08574459,202.99,202.98,0.03]
[1756812161682,14.52991715,202.99,202.98,0.03]
[1756812161874,53.74991715,202.99,202.98,0.03]
[1756812162079,58.11939354,202.99,202.98,0.03]
[1756812163793,58.15939354,202.99,202.98,0.03]
[1756812164299,18.89939354,202.99,202.98,0.03]
[1756812164482,58.13939354,202.99,202.98,0.03]
[1756812165112,58.11939354,202.99,202.98,0.03]
[1756812165393,18.89939354,202.99,202.98,0.03]
[1756812165576,0.28432314,202.99,202.98,0.03]
[1756812165762,13.59559401,202.99,202.98,0.03]
[1756812165967,53.07991715,202.99,202.98,0.03]
[1756812166395,58.11939354,202.99,202.98,0.03]
[1756812169389,58.09939354,202.99,202.98,0.03]
[1756812169899,18.91939354,202.99,202.98,0.03]
[1756812170193,58.05939354,202.99,202.98,0.03]
[1756812170484,18.91939354,202.99,202.98,0.03]
[1756812170697,58.05939354,202.99,202.98,0.03]
[1756812171191,18.91939354,202.99,202.98,0.03]
[1756812171392,58.05939354,202.99,202.98,0.03]
[1756812171587,18.91939354,202.99,202.98,0.03]
[1756812171781,58.03939354,202.99,202.98,0.03]
[1756812172006,57.36939354,202.99,202.98,0.03]
[1756812172691,52.99991715,202.99,202.98,0.03]
[1756812172890,57.36939354,202.99,202.98,4.95659375]
[1756812173193,18.24939354,202.99,202.98,4.95659375]
[1756812173400,57.34939354,202.99,202.98,4.95659375]
[1756812173968,57.34939354,202.99,202.98,0.03]
[1756812174176,58.01939354,202.99,202.98,0.03]
[1756812174880,18.24939354,202.99,202.98,0.03]
[1756812175092,57.97939354,202.99,202.98,0.03]
[1756812175290,57.30939354,202.99,202.98,0.03]
[1756812175701,18.24939354,202.99,202.98,0.03]
[1756812175890,52.93991715,202.99,202.98,0.03]
[1756812177507,1e-08,203.01,202.98,26.03]
[1756812177799,1e-08,203.04,203.01,0.14216157]
[1756812177997,13.1,203.08,203.05,26.0]
[1756812178181,13.1,203.08,203.07,4.36947639]
[1756812178378,34.44,203.1,203.07,5.04947639]
[1756812178601,34.44,203.1,203.08,0.68]
[1756812179171,34.44,203.1,203.08,5.60416781]
[1756812180401,34.44,203.1,203.08,9.9736442]
[1756812181790,0.06,203.1,203.08,9.9736442]
[1756812182387,0.06,203.1,203.08,5.60416781]
[1756812182587,0.06,203.1,203.08,9.9736442]
[1756812184485,0.06,203.1,203.08,9.43580577]
[1756812184690,0.06,203.1,203.08,10.60822255]
[1756812184892,0.06,203.1,203.08,5.74632938]
[1756812185186,0.06,203.1,203.08,10.11580577]
[1756812187713,0.06,203.1,203.08,36.11580577]
[1756812188020,0.06,203.1,203.08,4.92416781]
[1756812188909,0.06,203.1,203.08,9.2936442]
[1756812190115,0.06,203.1,203.08,9.9636442]
[1756812190313,0.06,203.1,203.08,9.2936442]
[1756812190495,0.06,203.1,203.08,35.43580577]
[1756812190809,0.06,203.1,203.08,36.10580577]
[1756812191702,0.06,203.1,203.08,31.73632938]
[1756812191908,0.06,203.1,203.08,36.10580577]
[1756812194397,0.06,203.1,203.08,35.43580577]
[1756812196216,1e-08,203.12,203.11,26.14216157]
[1756812196525,1e-08,203.13,203.12,26.14216157]
[1756812196693,1e-08,203.13,203.12,31.18163796]
[1756812197601,1e-08,203.13,203.12,26.81216157]
[1756812197800,1e-08,203.13,203.12,29.60703813]
[1756812198192,1e-08,203.13,203.12,34.53023623]
[1756812198395,1e-08,203.13,203.12,31.06535967]
[1756812198620,1e-08,203.13,203.12,33.86023623]
[1756812198996,0.72000001,203.13,203.12,4.9231981]
[1756812200825,1e-08,203.13,203.12,4.9231981]
[1756812205402,0.72000001,203.13,203.12,4.9231981]
[1756812206038,13.87991715,203.12,203.09,4.92392535]
[1756812206333,16.67479371,203.1,203.09,4.92392535]
[1756812206632,16.67479371,203.1,203.06,4.92465281]
[1756812206633,0.28432314,203.09,203.06,4.92465281]
[1756812206928,16.39047057,203.07,203.02,12.31380512]
[1756812207142,3.51487656,203.06,203.02,12.31380512]
[1756812207737,0.72,203.05,203.02,12.31380512]
[1756812208317,0.72,203.05,203.02,17.23942821]
[1756812211232,2.79487656,203.03,203.02,17.23942821]
[1756812211648,3.51487656,203.05,203.02,17.23942821]
[1756812211838,0.72,203.04,203.02,17.23942821]
[1756812213139,17.39479371,203.03,203.01,0.03]
[1756812213337,16.67479371,203.02,203.01,0.03]
[1756812213539,0.72,203.07,203.02,0.14216157]
[1756812213737,0.72,203.07,203.03,2.79487656]
[1756812213942,14.31559401,203.07,203.04,2.79487656]
[1756812214247,14.31559401,203.07,203.02,0.14216157]
[1756812214248,0.72,203.06,203.02,0.14216157]
[1756812214429,0.72,203.06,203.03,2.79487656]
[1756812214626,0.72,203.06,203.03,7.72002841]
[1756812215223,0.72,203.06,203.03,4.92515185]
[1756812215824,38.72,203.1,203.05,2.79487656]
[1756812216025,1e-08,203.13,203.07,2.79487656]
[1756812216254,0.72,203.12,203.09,2.79487656]
[1756812216750,0.72,203.12,203.1,4.92368291]
[1756812217249,0.28432314,203.1,203.07,4.9244103]
[1756812217559,0.72,203.09,203.07,4.9244103]
[1756812218556,0.72,203.09,203.07,7.71928686]
[1756812220633,0.72,203.09,203.07,4.9244103]
[1756812221152,1.00432314,203.11,203.07,4.9244103]
[1756812221357,0.72,203.1,203.07,4.9244103]
[1756812221550,0.72,203.1,203.07,7.71928686]
[1756812221728,0.72,203.09,203.07,4.9244103]
[1756812221928,0.72,203.09,203.03,2.79487656]
[1756812221929,0.28432314,203.07,203.03,2.79487656]
[1756812222150,0.72,203.06,203.02,41.1086863]
[1756812222650,0.72,203.06,203.02,41.7886863]
[1756812223245,0.72,203.06,203.03,2.79487656]
[1756812223448,0.72,203.06,203.03,7.72025704]
[1756812223846,0.28432314,203.07,203.03,7.72025704]
[1756812223847,1.00432314,203.07,203.03,7.72025704]
[1756812224351,3.51487656,203.06,203.03,4.92538048]
[1756812224552,0.72,203.05,203.03,4.92538048]
[1756812224741,3.51487656,203.06,203.03,4.92538048]
[1756812225051,2.79487656,203.07,203.03,4.92538048]
[1756812225257,3.51487656,203.07,203.03,4.92538048]
[1756812225432,0.72,203.07,203.03,4.92538048]
[1756812226641,3.51487656,203.07,203.03,4.92538048]
[1756812227551,3.51487656,203.07,203.02,17.26943283]
[1756812227759,17.39479371,203.06,203.02,17.26943283]
[1756812228056,0.72,203.05,203.02,17.26943283]
[1756812228456,0.72,203.04,203.02,17.26943283]
[1756812228639,2.79487656,203.05,203.02,17.26943283]
[1756812228833,16.67479371,203.06,203.02,17.26943283]
[1756812229148,0.72,203.05,203.02,17.26943283]
[1756812230452,3.51487656,203.06,203.02,17.26943283]
[1756812230631,0.72,203.05,203.02,17.26943283]
[1756812230834,2.79487656,203.06,203.02,17.26943283]
[1756812231034,13.87991715,203.04,203.02,4.95562309]
[1756812231247,0.72,203.03,203.02,4.95562309]
[1756812231754,0.72,203.03,203.02,0.03]
[1756812232062,13.87991715,203.04,203.02,0.03]
[1756812232243,14.59991715,203.04,203.02,0.03]
[1756812233376,13.87991715,203.04,203.02,0.03]
[1756812234066,14.59991715,203.04,203.02,0.03]
[1756812234361,13.87991715,203.04,203.02,0.03]
[1756812234746,14.59991715,203.04,203.02,0.03]
[1756812235258,13.87991715,203.04,203.02,0.03]
[1756812235963,2.79487656,203.07,203.02,3.50487656]
[1756812236178,38.72,203.08,203.04,2.79487656]
[1756812236674,0.72,203.07,203.04,2.79487656]
[1756812237369,38.72,203.08,203.05,2.79487656]
[1756812237681,53.03559401,203.08,203.05,2.79487656]
[1756812238353,0.72,203.07,203.06,4.92465281]
[1756812239665,52.31559401,203.08,203.06,4.92465281]
[1756812239875,53.03559401,203.08,203.06,4.92465281]
[1756812240346,53.03559401,203.08,203.04,15.10741381]
[1756812240546,53.01559401,203.08,203.04,15.10741381]
[1756812240745,53.01559401,203.08,203.04,12.31253725]
[1756812240960,53.01559401,203.08,203.04,15.10741381]
[1756812241165,53.01559401,203.08,203.04,12.31253725]
[1756812241166,52.29559401,203.08,203.04,12.31253725]
[1756812241355,0.72,203.07,203.04,15.10741381]
[1756812241677,38.84216157,203.09,203.05,0.68]
[1756812241980,38.84216157,203.09,203.07,2.79487656]
[1756812242364,52.57991715,203.09,203.08,4.92416781]
[1756812243579,14.59991715,203.09,203.08,4.92416781]
[1756812243791,53.29991715,203.09,203.08,4.92416781]
[1756812244450,53.29991715,203.09,203.06,4.92465281]
[1756812244764,0.72,203.08,203.06,4.92465281]
[1756812246055,2.79487656,203.07,203.06,4.92465281]
[1756812246256,2.79487656,203.08,203.04,0.14216157]
[1756812246460,0.72,203.07,203.04,0.14216157]
[1756812246772,0.72,203.07,203.04,7.86210226]
[1756812247159,0.72,203.06,203.03,0.03]
[1756812247358,0.72,203.06,203.03,4.95535294]
[1756812247653,0.72,203.05,203.03,30.95535294]
[1756812247861,0.72,203.04,203.03,4.95535294]
[1756812248480,39.42,203.06,203.03,4.95535294]
[1756812248681,38.7,203.06,203.03,4.95535294]
[1756812248980,0.72,203.05,203.03,4.95535294]
[1756812250882,0.72,203.05,203.03,0.03]
[1756812251687,3.51487656,203.07,203.03,0.03]
[1756812251869,38.98432314,203.07,203.04,2.79487656]
[1756812252182,1.00432314,203.07,203.04,2.79487656]
[1756812252383,39.70432314,203.07,203.04,2.79487656]
[1756812252773,38.98432314,203.07,203.05,4.92489534]
[1756812252970,0.72,203.06,203.05,4.92489534]
[1756812253170,38.98432314,203.07,203.05,4.92489534]
[1756812253386,39.70432314,203.07,203.05,4.92489534]
[1756812253992,38.98432314,203.07,203.05,4.92489534]
[1756812254392,39.70432314,203.07,203.05,4.92489534]
[1756812254685,38.98432314,203.07,203.03,7.75025704]
[1756812254891,0.72,203.06,203.03,7.75025704]
[1756812255290,38.98432314,203.07,203.04,2.79487656]
[1756812255589,38.7,203.07,203.06,2.79487656]
[1756812255792,52.29559401,203.09,203.06,2.79487656]
[1756812256093,53.01559401,203.09,203.06,2.79487656]
[1756812256475,0.72,203.08,203.06,2.79487656]
[1756812256673,0.72,203.08,203.05,4.92489534]
[1756812256890,16.39047057,203.06,203.05,4.92489534]
[1756812257087,56.09479371,203.06,203.05,4.92489534]
[1756812257684,56.09479371,203.06,203.04,4.92508985]
[1756812257889,3.51487656,203.05,203.04,4.92508985]
[1756812259291,3.51487656,203.05,203.03,0.03]
[1756812259500,4.37375777,203.04,203.03,0.03]
[1756812259794,17.96935178,203.04,203.03,0.03]
[1756812259992,18.97367492,203.04,203.03,0.03]
[1756812265599,14.59991715,203.04,203.03,0.03]
[1756812265796,4.65808091,203.04,203.03,0.03]
[1756812265997,38.68,203.04,203.03,0.03]
[1756812270403,57.65367492,203.04,203.03,0.03]
[1756812271312,0.72,203.07,203.03,0.03]
[1756812271610,52.55991715,203.06,203.03,0.03]
[1756812272610,13.87991715,203.06,203.03,0.03]
[1756812272910,38.68,203.05,203.03,0.03]
[1756812273818,13.87991715,203.06,203.03,0.03]
[1756812274118,38.68,203.05,203.03,5.07375777]
[1756812274319,38.68,203.04,203.03,4.40375777]
[1756812275207,38.68,203.04,203.03,4.95538048]
[1756812275608,4.37375777,203.07,203.03,4.95538048]
[1756812275609,13.59559401,203.05,203.03,4.95538048]
[1756812275804,38.68,203.04,203.03,4.95538048]
[1756812276720,38.68,203.04,203.03,0.03]
[1756812278825,38.66,203.04,203.03,0.03]
[1756812282208,38.66,203.04,203.03,4.40375777]
[1756812282538,0.65,203.07,203.03,4.40375777]
[1756812282714,13.87991715,203.05,203.03,4.40375777]
[1756812283038,38.66,203.07,203.04,5.05375777]
[1756812283209,38.66,203.07,203.06,4.37375777]
[1756812283823,38.66,203.07,203.06,9.29841058]
[1756812284614,39.31,203.07,203.04,26.14216157]
[1756812284939,39.31,203.07,203.03,26.03]
[1756812284940,0.93432314,203.06,203.03,0.03]
[1756812285139,0.93432314,203.06,203.03,4.95533603]
[1756812285327,0.65,203.05,203.03,4.95533603]
[1756812285523,53.18991715,203.04,203.03,4.95533603]
[1756812285943,53.18991715,203.04,203.03,0.03]
[1756812286938,57.56367492,203.04,203.03,0.03]
[1756812290344,62.48881282,203.04,203.03,0.03]
[1756812291761,39.87991715,203.03,203.02,0.03]
[1756812291957,48.62743269,203.03,203.02,0.03]
[1756812292122,49.27743269,203.03,203.02,0.03]
[1756812293138,54.20281317,203.03,203.02,0.03]
[1756812293333,49.8290554,203.03,203.02,0.03]
[1756812293539,88.4890554,203.03,203.02,0.03]
[1756812293745,14.52991715,203.03,203.02,0.03]
[1756812293946,44.90367492,203.03,203.02,0.03]
[1756812294160,44.61935178,203.03,203.02,0.03]
[1756812294371,83.25935178,203.03,203.02,0.03]
[1756812294533,83.40151335,203.03,203.02,0.03]
[1756812294933,79.16991715,203.03,203.02,0.03]
[1756812295139,83.54367492,203.03,203.02,0.03]
[1756812296632,88.4690554,203.03,203.02,0.03]
[1756812297145,92.84281317,203.03,203.02,0.03]
[1756812297348,94.81778046,203.03,203.02,0.03]
[1756812299765,56.17778046,203.03,203.02,0.03]
[1756812299940,49.8290554,203.03,203.02,0.03]
[1756812300141,44.90367492,203.03,203.02,0.03]
[1756812300349,83.54367492,203.03,203.02,0.03]
[1756812301564,88.4690554,203.03,203.02,0.03]
[1756812302571,57.54367492,203.03,203.02,0.03]
[1756812304469,56.89367492,203.03,203.02,0.03]
[1756812305067,52.51991715,203.03,203.02,0.03]
[1756812305265,56.89367492,203.03,203.02,0.03]
[1756812305463,18.25367492,203.03,203.02,0.03]
[1756812305654,13.59559401,203.03,203.02,0.03]
[1756812305859,52.23559401,203.03,203.02,0.03]
[1756812306360,52.51991715,203.03,203.02,0.03]
[1756812306866,56.75151335,203.03,203.02,0.03]
[1756812307365,52.51991715,203.03,203.02,0.03]
[1756812307583,56.89367492,203.03,203.02,0.03]
[1756812307972,13.87991715,203.03,203.02,0.71]
[1756812308162,52.51991715,203.03,203.02,0.71]
[1756812309251,52.51991715,203.03,203.02,5.63562309]
[1756812310152,135.77438239,203.08,203.02,10.00938086]
[1756812310377,52.23559401,203.07,203.04,4.37375777]
[1756812310561,38.64,203.07,203.02,22.32343858]
[1756812310764,13.87991715,203.06,203.03,0.68]
[1756812310956,38.64,203.05,203.03,0.68]
[1756812311161,17.96935178,203.04,203.02,0.03]
[1756812311384,56.89367492,203.03,203.02,0.03]
[1756812311562,57.58367492,203.03,203.02,0.03]
[1756812311950,57.64367492,203.03,203.02,0.03]
[1756812312687,56.95367492,203.03,203.02,0.03]
[1756812312980,57.64367492,203.03,203.02,0.03]
[1756812316170,56.95367492,203.03,203.02,0.03]
[1756812316370,13.93991715,203.03,203.02,0.71]
[1756812316577,52.55991715,203.03,203.02,0.71]
[1756812316858,52.55991715,203.03,203.02,0.03]
[1756812318491,56.93367492,203.03,203.02,0.03]
[1756812318678,57.62367492,203.03,203.02,0.03]
[1756812319187,56.93367492,203.03,203.02,0.03]
[1756812319484,0.06,203.03,203.02,0.03]
[1756812319671,0.06,203.03,203.02,5.08375777]
[1756812319881,0.06,203.03,203.02,10.00938086]
[1756812320084,0.06,203.06,203.05,26.0]
[1756812320406,38.68,203.06,203.04,4.37375777]
[1756812320687,38.68,203.06,203.05,5.05375777]
[1756812321496,38.68,203.06,203.05,3.47773355]
[1756812321669,38.68,203.06,203.04,2.79773355]
[1756812322700,38.68,203.06,203.03,2.79773355]
[1756812322881,38.68,203.06,203.03,3.47773355]
[1756812323278,38.68,203.06,203.02,17.26968081]
[1756812323279,13.87991715,203.05,203.02,17.26968081]
[1756812323485,38.62,203.04,203.02,17.26968081]
[1756812324377,38.62,203.04,203.02,0.03]
[1756812324578,42.10773355,203.04,203.02,0.03]
[1756812324893,41.41773355,203.04,203.02,0.03]
[1756812325302,17.3676507,203.03,203.02,0.03]